bitfinex-derivatives/quotes_ETHF0:USTF0_20241026
["timestamp","ask_amount","ask_price","bid_price","bid_amount"]
[1729973749161,0.481,2493.5,2493.4,5.84042133]
[1729973749558,0.481,2493.5,2493.4,1.83002133]
[1729973749769,0.481,2493.5,2493.4,5.84042133]
[1729973751066,1.77732,2493.6,2493.4,5.84042133]
[1729973751266,1.77732,2493.6,2493.5,6.22529702]
[1729973751564,1.77732,2493.6,2493.5,6.3508613]
[1729973751763,1.3758,2493.6,2493.5,6.3508613]
[1729973752154,1.77732,2493.6,2493.5,6.3508613]
[1729973752468,0.481,2493.6,2493.5,10.63723702]
[1729973752764,0.481,2493.6,2493.5,10.96367608]
[1729973752963,0.481,2493.6,2493.5,10.7627905]
[1729973756065,0.481,2493.6,2493.5,10.9636837]
[1729973756278,0.481,2493.6,2493.5,10.7627905]
[1729973756464,0.481,2493.6,2493.5,10.63723702]
[1729973756666,0.481,2493.6,2493.5,10.76279513]
[1729973756869,0.88252,2493.7,2493.5,10.96368811]
[1729973757068,0.88252,2493.7,2493.6,1.62934811]
[1729973757269,0.88252,2493.7,2493.6,2.48404811]
[1729973757471,0.88252,2493.7,2493.6,6.29355513]
[1729973757873,0.88252,2493.7,2493.6,6.49444346]
[1729973758067,0.88252,2493.7,2493.6,6.29355513]
[1729973759571,0.481,2493.7,2493.6,6.29355513]
[1729973759879,0.88251,2493.7,2493.6,6.29355513]
[1729973760077,0.481,2493.7,2493.6,6.29355513]
[1729973760671,0.481,2493.7,2493.6,6.69507513]
[1729973762489,0.481,2493.7,2493.6,8.19885547]
[1729973762681,0.481,2493.8,2493.7,0.40151]
[1729973762985,0.40147,2494.0,2493.8,0.40149]
[1729973763182,0.40147,2494.0,2493.9,1.42845513]
[1729973763577,0.40147,2494.0,2493.9,5.43804516]
[1729973763785,0.40147,2494.0,2493.9,1.42844516]
[1729973764487,2.67449702,2494.1,2493.8,3.2078]
[1729973764682,2.67449702,2494.1,2493.8,4.51069702]
[1729973764683,2.10697,2493.9,2493.8,4.51069702]
[1729973764883,2.10697,2493.9,2493.8,4.63624919]
[1729973766380,2.10697,2493.9,2493.8,4.51069702]
[1729973766890,2.10697,2493.9,2493.8,4.63625221]
[1729973767386,2.10697,2493.9,2493.8,1.30289702]
[1729973767585,2.10697,2493.9,2493.8,1.42845025]
[1729973767791,2.10697,2493.9,2493.8,1.30289702]
[1729973768995,2.10697,2493.9,2493.8,1.42844885]
[1729973769191,2.10697,2493.9,2493.8,1.30289702]
[1729973769698,2.10697,2493.9,2493.7,3.2078]
[1729973769699,0.40149,2493.8,2493.7,3.2078]
[1729973769890,6.59698702,2493.8,2493.7,3.2078]
[1729973770586,7.48498702,2493.8,2493.7,3.2078]
[1729973771593,6.59698702,2493.8,2493.7,3.2078]
[1729973771896,7.48498702,2493.8,2493.7,3.2078]
[1729973774295,6.59698702,2493.8,2493.7,3.2078]
[1729973774501,0.883,2493.8,2493.7,4.91220702]
[1729973775297,0.883,2493.8,2493.7,5.03775895]
[1729973777792,0.40148,2493.9,2493.7,9.04814895]
[1729973777994,0.40148,2493.9,2493.8,1.30289702]
[1729973778203,0.40148,2493.9,2493.8,2.14849702]
[1729973778596,1.26177,2494.0,2493.8,2.54997702]
[1729973778894,0.8603,2494.0,2493.9,1.70436702]
[1729973779101,0.8603,2494.0,2493.9,2.56756702]
[1729973779705,0.8603,2494.0,2493.9,2.16609702]
[1729973779892,0.481,2494.1,2494.0,0.40146]
[1729973780199,0.481,2494.1,2494.0,5.03769748]
[1729973780394,0.481,2494.1,2494.0,9.04729748]
[1729973782596,0.481,2494.1,2494.0,9.04729129]
[1729973782799,0.481,2494.1,2494.0,8.92175702]
[1729973782997,0.481,2494.1,2494.0,9.04729156]
[1729973783501,2.21519702,2494.5,2494.0,9.24814227]
[1729973783502,0.481,2494.2,2494.0,9.24814227]
[1729973783805,0.8598,2494.1,2494.0,3.60926]
[1729973784004,0.8598,2494.1,2494.0,3.33333745]
[1729973784200,0.481,2494.2,2494.0,3.73478745]
[1729973784402,0.481,2494.2,2494.1,0.12553745]
[1729973784607,0.481,2494.2,2494.1,1.01743745]
[1729973784805,0.88243,2494.2,2494.1,1.01743745]
[1729973785004,0.481,2494.2,2494.1,1.01743745]
[1729973785305,0.481,2494.2,2494.1,0.8919]
[1729973786108,0.481,2494.2,2494.1,2.19479702]
[1729973786805,0.40144,2494.1,2494.0,4.51069702]
[1729973787010,1.28584,2494.1,2494.0,4.51069702]
[1729973787709,2.18729702,2494.1,2493.7,4.9866]
[1729973787906,0.40148,2493.9,2493.8,1.30289702]
[1729973788406,0.8765,2494.0,2493.7,4.9866]
[1729973788614,1.27796,2494.0,2493.9,1.30289702]
[1729973793311,1.27796,2494.0,2493.9,0.12555294]
[1729973793616,2.17939702,2494.0,2493.8,1.30289702]
[1729973793913,1.28358,2493.9,2493.7,5.38811]
[1729973794113,1.28358,2493.9,2493.8,0.12555068]
[1729973795612,1.28358,2493.9,2493.8,1.4284477]
[1729973796215,1.76443,2494.2,2493.8,5.63893096]
[1729973796412,1.76443,2494.2,2493.7,4.9866]
[1729973796413,1.363,2494.2,2494.1,1.30289702]
[1729973796816,1.363,2494.2,2494.1,3.13793818]
[1729973797016,1.76443,2494.2,2494.1,3.13793818]
[1729973799818,1.76443,2494.2,2494.1,3.01239702]
[1729973800215,1.76443,2494.2,2494.1,3.13793724]
[1729973800725,1.76443,2494.2,2494.1,3.01239702]
[1729973801223,0.481,2494.2,2494.1,3.01239702]
[1729973801419,0.481,2494.2,2494.1,3.53937282]
[1729973802324,1.30289702,2495.0,2494.5,1.30289702]
[1729973802516,1.70420702,2495.0,2494.8,1.30289702]
[1729973802822,0.8735,2494.9,2494.8,1.30289702]
[1729973803025,0.89175424,2494.9,2494.8,1.30289702]
[1729973803218,1.29306424,2494.9,2494.8,1.30289702]
[1729973803524,0.89175424,2494.9,2494.8,1.30289702]
[1729973804028,1.29306424,2494.9,2494.8,1.30289702]
[1729973804318,0.89175424,2494.9,2494.8,1.30289702]
[1729973805719,1.29306424,2494.9,2494.8,1.30289702]
[1729973805925,0.89175424,2494.9,2494.8,1.30289702]
[1729973806530,0.01825424,2494.9,2494.8,1.30289702]
[1729973807929,0.01825424,2494.9,2494.8,1.4284003]
[1729973810240,0.01825424,2494.9,2494.8,1.30289702]
[1729973813038,0.41956424,2494.9,2494.8,1.30289702]
[1729973813640,0.01825424,2494.9,2494.8,1.30289702]
[1729973814147,0.41956424,2494.9,2494.8,1.30289702]
[1729973817644,0.41956424,2494.9,2494.8,4.51069702]
[1729973821250,0.4014,2494.4,2494.1,3.60923]
[1729973821450,0.4014,2494.4,2494.3,1.30289702]
[1729973822142,0.41965424,2494.4,2494.3,1.30289702]
[1729973829454,0.8262,2494.8,2494.3,6.61459404]
[1729973829645,1.22754,2494.8,2494.7,1.30289702]
[1729973830251,1.22754,2494.8,2494.7,2.97199702]
[1729973830947,1.29091,2495.0,2494.8,0.40132]
[1729973831149,1.29091,2495.0,2494.9,1.30289702]
[1729973832244,3.2078,2495.2,2494.9,5.31089702]
[1729973832447,0.40129,2495.1,2495.0,0.8648]
[1729973832746,3.60908,2495.2,2495.0,2.16769702]
[1729973832947,0.40128,2495.2,2495.1,1.30289702]
[1729973833147,1.6959,2495.3,2495.1,1.30289702]
[1729973833349,2.09716,2495.3,2495.2,1.30289702]
[1729973833549,1.6959,2495.3,2495.2,1.30289702]
[1729973833750,2.09715,2495.3,2495.2,2.17739702]
[1729973834044,1.6959,2495.3,2495.2,2.17739702]
[1729973834243,0.40117,2495.8,2495.4,0.40122]
[1729973834442,0.00488454,2496.3,2495.7,4.51069702]
[1729973834645,0.40598454,2496.3,2496.1,3.2078]
[1729973834846,0.40598454,2496.3,2495.8,2.6236]
[1729973834847,0.40111,2496.2,2496.0,1.30289702]
[1729973835054,0.01825694,2496.1,2496.0,1.30289702]
[1729973835250,0.01825694,2496.1,2496.0,5.71043702]
[1729973836257,3.2078,2497.3,2496.1,4.0064]
[1729973836443,1.7186,2497.2,2496.5,6.02474884]
[1729973836650,0.40101,2496.8,2496.5,6.02474884]
[1729973836851,1.7186,2497.2,2496.5,3.2078]
[1729973837055,0.40098,2497.0,2496.5,3.2078]
[1729973837351,0.401,2496.9,2496.5,3.2078]
[1729973837547,1.7186,2497.2,2496.5,3.2078]
[1729973838250,0.40098,2497.0,2496.5,3.2078]
[1729973838452,1.7186,2497.2,2496.5,6.02474884]
[1729973838752,0.40097,2497.1,2496.5,6.42579884]
[1729973839058,0.40098,2497.0,2496.5,6.02474884]
[1729973839557,1.7186,2497.2,2496.5,6.02474884]
[1729973839858,1.7186,2497.2,2496.5,3.2078]
[1729973840155,1.7186,2497.2,2496.7,2.81694884]
[1729973840453,3.2078,2497.3,2496.9,2.81694884]
[1729973840454,3.60873,2497.3,2496.9,2.81694884]
[1729973841249,3.2078,2497.3,2496.9,2.81694884]
[1729973841654,0.40095,2497.2,2496.9,2.81694884]
[1729973842050,4.9523,2497.6,2496.9,2.81694884]
[1729973842251,0.40094,2497.3,2496.9,2.81694884]
[1729973842455,4.9523,2497.6,2496.9,2.81694884]
[1729973842661,0.40095,2497.2,2496.9,2.81694884]
[1729973843161,4.9523,2497.6,2496.9,2.81694884]
[1729973843162,0.40096,2497.1,2496.9,2.81694884]
[1729973843358,4.9523,2497.6,2496.9,2.81694884]
[1729973843359,0.40094,2497.3,2496.9,2.81694884]
[1729973843558,0.40095,2497.2,2496.9,2.81694884]
[1729973844063,0.40097,2497.1,2496.9,2.81694884]
[1729973844259,0.943,2497.8,2497.4,0.699]
[1729973844260,0.40085,2497.8,2497.4,0.699]
[1729973844559,3.2078,2497.5,2497.1,2.81694884]
[1729973844761,0.40094,2497.3,2497.1,2.81694884]
[1729973845061,0.40091,2497.5,2497.1,2.81694884]
[1729973845258,0.4009,2497.5,2497.4,2.81694884]
[1729973845659,0.9089,2497.6,2497.4,2.81694884]
[1729973845862,1.30979,2497.6,2497.4,2.81694884]
[1729973846058,0.9089,2497.6,2497.4,2.81694884]
[1729973846759,1.30979,2497.6,2497.4,2.81694884]
[1729973846966,0.9089,2497.6,2497.4,2.81694884]
[1729973847560,1.30979,2497.6,2497.4,2.81694884]
[1729973847867,0.9089,2497.6,2497.4,2.81694884]
[1729973850662,0.9347,2497.7,2497.5,4.004]
[1729973850867,1.33557,2497.7,2497.4,2.81694884]
[1729973851973,0.9347,2497.7,2497.4,2.81694884]
[1729973852463,0.4009,2497.5,2497.4,2.81694884]
[1729973853165,0.40093,2497.3,2496.8,3.6088]
[1729973853369,0.40095,2497.2,2497.0,2.81694884]
[1729973853563,0.40094,2497.3,2497.0,2.81694884]
[1729973853865,0.40095,2497.2,2497.0,2.81694884]
[1729973854265,0.9314,2497.4,2497.0,2.81694884]
[1729973854461,0.40096,2497.1,2497.0,2.81694884]
[1729973854970,0.40098,2497.0,2496.8,2.81694884]
[1729973855761,0.40096,2497.1,2496.9,3.2078]
[1729973855965,0.9347,2497.7,2497.0,2.81694884]
[1729973855966,0.8662,2497.5,2497.0,2.81694884]
[1729973856459,0.9347,2497.7,2497.0,2.81694884]
[1729973856460,0.4009,2497.6,2497.4,2.81694884]
[1729973856659,0.40088,2497.6,2497.4,2.81694884]
[1729973856860,0.40088,2497.6,2497.4,6.82094884]
[1729973857265,1.33557,2497.7,2497.4,6.82094884]
[1729973857469,1.33557,2497.7,2497.4,2.81694884]
[1729973857965,3.2078,2498.2,2497.6,3.2078]
[1729973858166,3.2078,2498.2,2498.0,0.4008]
[1729973858365,0.40074,2498.5,2498.1,2.81694884]
[1729973858566,4.1336,2498.6,2498.1,2.81694884]
[1729973858763,0.40074,2498.5,2498.1,3.21773884]
[1729973859169,4.1336,2498.6,2498.4,2.81694884]
[1729973859369,0.9258,2498.6,2498.3,3.2078]
[1729973859568,0.40074,2498.5,2498.1,2.81694884]
[1729973859769,0.9258,2498.6,2498.1,2.81694884]
[1729973859975,0.9258,2498.6,2498.1,6.02474884]
[1729973860179,4.1336,2498.6,2498.1,6.02474884]
[1729973860371,0.40076,2498.4,2498.1,6.02474884]
[1729973860676,0.40078,2498.3,2498.1,6.02474884]
[1729973860868,0.40078,2498.2,2498.1,6.02474884]
[1729973863276,0.40078,2498.2,2498.0,0.8711]
[1729973863277,0.40082,2498.0,2497.9,2.81694884]
[1729973865684,4.20951,2498.9,2497.9,6.82014884]
[1729973865890,0.40074,2498.5,2498.4,2.81694884]
[1729973866696,0.40077,2498.3,2498.2,6.02474884]
[1729973870388,0.40077,2498.3,2496.4,7.70351484]
[1729973870389,4.0032,2498.3,2497.7,2.81694884]
[1729973870692,0.40084,2497.9,2497.7,2.81694884]
[1729973870901,0.40084,2497.9,2497.7,3.21780884]
[1729973872096,1.81,2498.2,2497.7,3.21780884]
[1729973872097,0.40085,2497.8,2497.7,3.21780884]
[1729973872498,1.81,2498.2,2497.7,3.21780884]
[1729973872499,0.40084,2497.9,2497.7,3.21780884]
[1729973872801,0.40084,2497.9,2497.8,2.81694884]
[1729973874596,3.2078,2499.2,2497.8,12.84489768]
[1729973874804,3.2078,2499.2,2498.7,0.4007]
[1729973874805,0.40068,2498.9,2498.7,0.4007]
[1729973874995,3.2078,2499.2,2498.7,0.9316]
[1729973875200,0.40067,2499.0,2498.9,6.02474884]
[1729973875401,4.2218,2499.5,2498.9,6.02474884]
[1729973875402,3.2078,2499.5,2498.9,6.02474884]
[1729973875707,3.2078,2499.5,2499.3,2.81694884]
[1729973876106,0.40059,2499.4,2499.3,2.81694884]
[1729973876308,3.15837772,2499.8,2499.3,2.81694884]
[1729973876509,3.55890772,2499.8,2499.6,2.81694884]
[1729973876700,3.15837772,2499.8,2499.6,2.81694884]
[1729973877203,3.15837772,2499.8,2499.6,3.21749884]
[1729973877403,3.15837772,2499.8,2499.7,4.12605563]
[1729973877603,3.15837772,2499.8,2499.7,4.57696499]
[1729973878205,3.2078,2500.4,2499.8,4.0]
[1729973878407,0.40045,2500.3,2500.1,2.81694884]
[1729973878710,3.60824,2500.4,2500.2,0.57616499]
[1729973878904,3.60824,2500.4,2500.3,0.32566464]
[1729973879403,7.60744,2500.4,2499.9,2.81694884]
[1729973879604,0.4005,2500.0,2499.9,2.81694884]
[1729973879801,0.4005,2500.0,2499.9,2.94219643]
[1729973881504,0.8645,2500.3,2499.9,2.94219643]
[1729973881695,0.4005,2500.0,2499.9,2.81694884]
[1729973881898,0.4005,2500.0,2499.9,2.94219873]
[1729973882205,0.8645,2500.3,2499.9,2.94219873]
[1729973882505,0.4005,2500.0,2499.9,2.81694884]
[1729973882703,0.4005,2500.0,2499.9,2.94219649]
[1729973883410,0.4005,2500.0,2499.9,2.81694884]
[1729973883612,0.4005,2500.0,2499.6,3.2078]
[1729973883613,0.40054,2499.7,2499.6,2.81694884]
[1729973883913,0.40054,2499.7,2499.6,2.9422101]
[1729973885208,0.40054,2499.7,2499.6,2.81694884]
[1729973886810,4.0947,2500.0,2499.6,10.15080308]
[1729973886811,0.40052,2499.9,2499.6,10.15080308]
[1729973887005,0.40052,2499.9,2499.8,2.81694884]
[1729973891507,0.8869,2500.0,2499.8,2.81694884]
[1729973891709,0.40051,2499.9,2499.8,2.81694884]
[1729973893313,1.00104,2500.5,2499.8,6.81694884]
[1729973893513,0.9316,2500.3,2499.9,3.2078]
[1729973893815,0.9316,2500.3,2500.2,2.81694884]
[1729973893816,1.33205,2500.3,2500.2,2.81694884]
[1729973895607,1.33205,2500.3,2499.9,2.81694884]
[1729973895608,8.1394,2500.3,2499.9,2.81694884]
[1729973895807,0.4005,2500.0,2499.9,2.81694884]
[1729973896413,3.2078,2500.0,2499.7,2.81694884]
[1729973896608,0.40053,2499.8,2499.7,2.81694884]
[1729973897204,0.40053,2499.8,2499.7,6.81774884]
[1729973897714,0.9107,2500.2,2499.7,6.81774884]
[1729973897916,0.9107,2500.2,2499.7,2.81694884]
[1729973898113,0.40052,2499.9,2499.7,2.81694884]
[1729973899608,0.9107,2500.2,2499.7,2.81694884]
[1729973899811,3.2078,2500.3,2499.5,3.2078]
[1729973900008,3.2078,2500.3,2499.1,2.0146]
[1729973900009,0.40047,2500.2,2500.1,2.81694884]
[1729973900217,0.40047,2500.2,2499.1,0.4008]
[1729973900218,21.46578657,2500.2,2498.7,0.04789827]
[1729973900411,3.2078,2498.8,2498.4,0.40074]
[1729973900608,0.40065,2499.1,2498.5,0.52603264]
[1729973900609,3.2078,2499.1,2498.5,0.52603264]
[1729973900813,3.2078,2499.1,2498.6,0.12530264]
[1729973901017,0.40066,2499.0,2498.7,0.12530264]
[1729973901219,0.40066,2499.0,2498.8,0.12530079]
[1729973901414,0.40069,2498.8,2498.3,13.7]
[1729973901614,3.2078,2499.1,2498.4,0.12530518]
[1729973901823,0.40072,2498.6,2498.5,0.12530518]
[1729973902118,3.2078,2498.8,2498.3,13.7]
[1729973902119,0.40074,2498.5,2498.3,13.7]
[1729973902316,0.40075,2498.4,2498.3,13.7]
[1729973902619,0.40075,2498.4,2498.3,13.82531882]
[1729973902813,0.40075,2498.4,2498.3,13.7]
[1729973905218,4.40315,2498.4,2498.3,13.7]
[1729973905616,0.40075,2498.4,2498.3,13.7]
[1729973905819,4.40315,2498.4,2498.3,13.7]
[1729973910123,3.2078,2498.5,2498.3,13.7]
[1729973910422,0.40075,2498.4,2498.3,13.7]
[1729973911121,3.2078,2498.5,2498.3,13.7]
[1729973912020,0.40075,2498.4,2498.3,13.7]
[1729973912226,3.2078,2498.5,2498.3,13.7]
[1729973912427,0.40075,2498.4,2498.3,13.7]
[1729973913127,0.00075,2498.4,2498.3,13.7]
[1729973913316,3.2078,2498.5,2498.3,13.7]
[1729973913727,0.40075,2498.4,2498.3,13.7]
[1729973920433,4.40315,2498.4,2498.3,13.7]
[1729973922128,7.61095,2498.4,2498.3,13.7]
[1729973923733,4.40315,2498.4,2498.3,13.7]
[1729973923926,7.61095,2498.4,2498.3,13.7]
[1729973924331,4.40315,2498.4,2498.3,13.7]
[1729973924533,7.61095,2498.4,2498.3,13.7]
[1729973927038,3.2078,2499.0,2498.3,20.92011884]
[1729973927337,6.994,2501.5,2498.9,3.60846]
[1729973927338,0.40062,2499.3,2498.9,3.60846]
[1729973927539,1.7176,2499.5,2499.0,1.7914]
[1729973927540,0.40062,2499.2,2499.0,1.7914]
[1729973927740,0.40062,2499.2,2499.1,15.5]
[1729973928240,1.7176,2499.5,2499.1,15.5]
[1729973928543,0.40062,2499.2,2499.1,15.5]
[1729973930040,4.40222,2499.2,2499.1,15.5]
[1729973930634,7.21916884,2499.2,2499.1,15.5]
[1729973935638,0.40072,2498.7,2498.4,1.7993]
[1729973936038,0.40072,2498.7,2498.5,15.5]
[1729973936644,3.2078,2498.8,2498.5,15.5]
[1729973936645,0.40072,2498.6,2498.5,15.5]
[1729973937641,3.2078,2498.8,2498.5,15.5]
[1729973937642,0.40071,2498.7,2498.5,15.5]
[1729973937842,0.40072,2498.6,2498.5,15.5]
[1729973939154,0.40071,2498.7,2498.5,15.5]
[1729973939538,3.2078,2498.8,2498.5,15.5]
[1729973939735,0.40072,2498.6,2498.5,15.5]
[1729973940342,0.8758,2498.9,2498.5,15.5]
[1729973940343,0.40071,2498.7,2498.5,15.5]
[1729973940646,0.40072,2498.6,2498.5,15.5]
[1729973941249,0.40071,2498.7,2498.5,15.5]
[1729973941434,3.2078,2498.8,2498.5,15.5]
[1729973941435,0.40072,2498.6,2498.5,15.5]
[1729973941845,0.40071,2498.7,2498.5,15.5]
[1729973942841,0.40072,2498.6,2498.5,15.5]
[1729973943245,3.2078,2498.8,2498.5,15.5]
[1729973943443,0.40071,2498.7,2498.5,15.5]
[1729973943652,3.2078,2498.8,2498.5,15.5]
[1729973943845,0.4007,2498.7,2498.5,15.5]
[1729973944456,0.4007,2498.7,2498.5,15.90074]
[1729973944656,3.2078,2498.8,2498.5,15.5]
[1729973944844,0.40066,2499.0,2498.7,0.4007]
[1729973945351,3.2078,2499.1,2498.8,0.12530369]
[1729973945550,3.60845,2499.1,2498.8,15.5]
[1729973945854,3.60845,2499.1,2498.9,0.8459]
[1729973946557,3.60844,2499.1,2498.9,0.8459]
[1729973948257,3.2078,2499.1,2498.9,0.8459]
[1729973948652,3.2078,2499.1,2498.9,1.24657]
[1729973949750,3.2078,2499.1,2498.9,0.8459]
[1729973950846,3.60845,2499.1,2498.9,0.8459]
[1729973951050,3.60845,2499.1,2499.0,15.5]
[1729973951954,3.2078,2499.1,2499.0,15.5]
[1729973952152,3.60844,2499.1,2499.0,15.5]
[1729973952756,3.2078,2499.1,2499.0,15.5]
[1729973953054,3.60844,2499.1,2499.0,15.5]
[1729973955946,3.2078,2499.9,2499.0,19.5016]
[1729973956155,0.8575,2499.9,2499.2,3.2078]
[1729973956353,0.8575,2499.9,2499.0,15.5]
[1729973956354,0.8575,2499.9,2499.5,3.2078]
[1729973956556,0.40053,2499.8,2499.5,3.2078]
[1729973956953,0.8575,2499.9,2499.5,3.2078]
[1729973957155,1.25802,2499.9,2499.5,3.60836]
[1729973958247,1.25802,2499.9,2499.5,3.2078]
[1729973958248,0.8575,2499.9,2499.5,3.2078]
[1729973958453,0.8575,2499.9,2499.8,3.2078]
[1729973958649,0.8575,2499.9,2499.8,3.60833]
[1729973959153,0.8575,2499.9,2499.8,19.10833]
[1729973959549,0.8575,2499.9,2499.8,15.5]
[1729973959856,0.8575,2499.9,2499.8,15.90053]
[1729973960155,0.8575,2499.9,2499.8,15.5]
[1729973960362,0.8575,2499.9,2499.8,15.90053]
[1729973961259,0.8575,2499.9,2499.8,15.5]
[1729973961459,1.25801,2499.9,2499.8,15.5]
[1729973961650,0.8575,2499.9,2499.8,15.5]
[1729973962356,1.25801,2499.9,2499.8,15.5]
[1729973963665,1.25801,2499.9,2499.3,3.2078]
[1729973963666,4.8575,2499.9,2499.3,3.2078]
[1729973963867,0.40056,2499.6,2499.3,3.2078]
[1729973964163,0.40056,2499.6,2499.4,15.5]
[1729973964954,0.8575,2499.9,2499.4,15.5]
[1729973965159,0.40056,2499.6,2499.4,15.5]
[1729973965763,0.8575,2499.9,2499.4,15.5]
[1729973965959,0.8575,2499.9,2499.4,15.90059]
[1729973966161,0.40057,2499.6,2499.4,15.90059]
[1729973966358,0.40057,2499.6,2499.4,15.5]
[1729973966560,0.40055,2499.7,2499.4,15.90058]
[1729973966767,0.40055,2499.7,2499.5,0.40057]
[1729973967167,0.8575,2499.9,2499.4,15.90058]
[1729973967465,0.8575,2499.9,2499.6,3.2078]
[1729973967770,0.40054,2499.7,2499.6,3.2078]
[1729973968266,0.8575,2499.9,2499.6,3.2078]
[1729973968464,3.2078,2500.3,2499.6,3.2078]
[1729973968667,0.892,2500.2,2499.6,3.2078]
[1729973968967,0.40052,2499.9,2499.6,3.60835]
[1729973969270,0.4005,2500.0,2499.7,0.40053]
[1729973969769,0.4005,2500.0,2499.6,3.2078]
[1729973969963,1.9184,2500.1,2499.6,3.2078]
[1729973970172,0.40054,2499.8,2499.4,15.90058]
[1729973970465,1.7547,2499.7,2499.4,15.5]
[1729973970674,2.15525,2499.7,2499.4,15.90059]
[1729973970974,0.892,2499.7,2499.4,15.5]
[1729973971163,0.892,2499.7,2499.5,0.40057]
[1729973971366,1.29255,2499.7,2499.4,15.90058]
[1729973971566,1.29254,2499.7,2499.4,15.90058]
[1729973972469,1.29254,2499.7,2499.5,0.40057]
[1729973972664,0.892,2499.7,2499.6,3.2078]
[1729973972865,0.892,2499.7,2499.6,3.60836]
[1729973977769,0.892,2499.7,2499.6,3.2078]
[1729973978381,1.29254,2499.7,2499.6,3.2078]
[1729973978572,0.40057,2499.6,2499.4,15.90059]
[1729973978767,0.892,2499.7,2499.4,15.5]
[1729973979078,0.892,2499.7,2499.4,18.7078]
[1729973979377,1.29255,2499.7,2499.5,0.40058]
[1729973979578,0.892,2499.7,2499.4,19.10838]
[1729973979881,1.29256,2499.7,2499.5,0.40057]
[1729973980277,0.40057,2499.6,2499.4,19.10839]
[1729973980677,0.892,2499.7,2499.4,19.10839]
[1729973980678,0.892,2499.7,2499.4,18.7078]
[1729973980877,1.33818,2499.5,2499.4,18.7078]
[1729973984876,1.33818,2499.5,2499.4,15.5]
[1729973986077,0.40057,2499.6,2499.4,15.5]
[1729973986278,0.8577,2499.5,2499.4,15.5]
[1729973986581,1.25828,2499.5,2499.4,15.5]
[1729973987682,0.8577,2499.5,2499.4,15.5]
[1729973989189,0.8577,2499.5,2499.4,15.90059]
[1729973991282,0.40043,2500.4,2500.1,0.40047]
[1729973991485,1.8098,2500.3,2500.2,0.40046]
[1729973991784,1.8098,2500.3,2500.2,3.60826]
[1729973991989,1.8098,2500.3,2500.2,19.10826]
[1729973992782,0.931,2500.3,2500.2,19.10826]
[1729973993687,0.931,2500.3,2500.2,18.7078]
[1729973993893,0.931,2500.3,2500.2,19.10826]
[1729973994086,0.931,2500.3,2500.2,18.7078]
[1729973994287,0.931,2500.3,2500.2,19.10826]
[1729973995388,0.40043,2500.5,2500.2,19.10826]
[1729973997586,0.40043,2500.5,2500.2,18.7078]
[1729973998295,1.8124,2500.7,2500.2,21.52474884]
[1729973998591,1.8124,2500.7,2500.4,0.40042]
[1729973999598,1.8124,2500.7,2500.5,0.40041]
[1729973999986,1.8124,2500.7,2500.4,0.40042]
[1729974000294,1.8124,2500.7,2500.2,21.52474884]
[1729974000497,1.8124,2500.7,2500.4,0.40043]
[1729974000789,1.8124,2500.7,2500.2,21.92519884]
[1729974000790,0.4004,2500.6,2500.2,21.92519884]
[1729974001195,0.4004,2500.6,2500.2,19.10825]
[1729974001588,1.8124,2500.7,2500.2,18.7078]
[1729974001786,0.40042,2500.5,2500.2,18.7078]
[1729974002188,0.40041,2500.6,2500.2,18.7078]
[1729974002491,1.8124,2500.7,2500.2,18.7078]
[1729974002687,2.21279,2500.7,2500.3,0.40044]
[1729974003383,1.8124,2500.7,2500.2,18.7078]
[1729974003586,0.4004,2500.6,2500.2,18.7078]
[1729974003898,2.21279,2500.7,2500.2,18.7078]
[1729974004085,0.40033,2501.1,2500.6,0.4004]
[1729974004287,1.8757,2501.1,2500.8,0.40036]
[1729974004497,1.8757,2501.1,2500.8,3.60815]
[1729974004698,1.8757,2501.1,2500.8,3.2078]
[1729974004890,2.27602,2501.1,2500.8,3.60816]
[1729974005291,1.3371639,2501.9,2501.1,3.2078]
[1729974005486,5.76699757,2502.8,2501.8,3.2078]
[1729974005793,5.76699757,2502.8,2502.7,3.2078]
[1729974006296,10.24196147,2502.8,2502.7,3.2078]
[1729974006494,10.24196147,2502.8,2502.3,3.2078]
[1729974006697,10.24196147,2502.8,2502.6,3.2078]
[1729974006903,5.76699757,2502.8,2502.6,3.2078]
[1729974007086,4.4749639,2502.7,2502.6,3.2078]
[1729974007393,5.76699757,2502.8,2502.6,3.2078]
[1729974007394,10.24196147,2502.8,2502.6,6.02474884]
[1729974007600,4.4749639,2502.8,2502.7,0.40006]
[1729974007891,3.2078,2503.7,2502.6,6.02474884]
[1729974008097,4.4749639,2503.2,2503.1,2.81694884]
[1729974008292,4.4749639,2503.2,2503.1,6.02474884]
[1729974008688,4.4749639,2503.2,2503.1,16.9078]
[1729974009491,4.4749639,2503.2,2503.1,13.7]
[1729974010388,4.4749639,2503.2,2502.9,3.2078]
[1729974010588,2.81694884,2503.4,2502.9,3.2078]
[1729974010589,4.4749639,2503.0,2502.9,3.2078]
[1729974010898,5.9979939,2503.0,2502.5,3.8368]
[1729974011099,4.4749639,2502.6,2502.5,3.8368]
[1729974011403,4.4749639,2502.6,2502.5,0.629]
[1729974011596,4.8750439,2502.6,2502.5,0.629]
[1729974011795,4.4749639,2502.6,2502.1,3.2078]
[1729974012000,4.4749639,2502.2,2502.1,3.2078]
[1729974013111,4.4749639,2502.2,2502.1,16.9078]
[1729974013402,4.4749639,2502.2,2502.1,3.2078]
[1729974013896,4.8751139,2502.2,2501.7,16.9078]
[1729974014100,3.93994884,2502.6,2501.7,16.9078]
[1729974014101,0.40016,2502.1,2501.7,16.9078]
[1729974014403,4.4749639,2501.8,2501.7,13.7]
[1729974016899,4.8751739,2501.8,2501.7,13.7]
[1729974017100,4.4749639,2501.8,2501.7,13.7]
[1729974018499,1.35531,2502.4,2501.7,13.7]